[Event "Titled Tuesday Blitz February 28 Late 2023"]
[White "Zhu, Jiner"]
[Black "Golubev, Mikhail"]
[WhiteFideId "8608059"]
[BlackFideId "14100983"]
[WhiteElo "2384"]
[BlackElo "2374"]
[Result "1-0"]
[Round "07"]
[TimeControl "180+2"]
[Date "2023.02.28"]
[WhiteClock "0:00:32"]
[BlackClock "0:00:08"]

1. c4 {[%clk 0:03:00]}  g6 {[%clk 0:02:59]} 2. d4 {[%clk 0:02:59]}  Bg7 {[%clk 0:03:00]} 3. Nc3 {[%clk 0:02:59]}  Nf6 {[%clk 0:03:00]} 4. e4 {[%clk 0:03:00]}  d6 {[%clk 0:03:00]} 5. Be2 {[%clk 0:02:59]}  O-O {[%clk 0:02:59]} 6. Be3 {[%clk 0:03:00]}  c5 {[%clk 0:02:57]} 7. d5 {[%clk 0:02:59]}  e6 {[%clk 0:02:58]} 8. Nf3 {[%clk 0:02:54]}  exd5 {[%clk 0:02:57]} 9. cxd5 {[%clk 0:02:54]}  b5 {[%clk 0:02:56]} 10. e5 {[%clk 0:02:49]}  dxe5 {[%clk 0:02:56]} 11. Bxc5 {[%clk 0:02:49]}  Re8 {[%clk 0:02:55]} 12. Bxb5 {[%clk 0:02:43]}  Bd7 {[%clk 0:02:55]} 13. Bxd7 {[%clk 0:02:32]}  Nbxd7 {[%clk 0:02:51]} 14. Be3 {[%clk 0:02:31]}  Nb6 {[%clk 0:02:39]} 15. O-O {[%clk 0:01:49]}  Nbxd5 {[%clk 0:02:37]} 16. Nxd5 {[%clk 0:01:48]}  Qxd5 {[%clk 0:02:33]} 17. Qe2 {[%clk 0:01:43]}  e4 {[%clk 0:02:15]} 18. Nd2 {[%clk 0:01:39]}  Qe6 {[%clk 0:02:01]} 19. Rac1 {[%clk 0:01:32]}  Nd5 {[%clk 0:01:58]} 20. Nc4 {[%clk 0:01:26]}  f5 {[%clk 0:01:54]} 21. Rfd1 {[%clk 0:01:17]}  f4 {[%clk 0:01:39]} 22. Rxd5 {[%clk 0:01:15]}  Qxd5 {[%clk 0:01:35]} 23. Bxf4 {[%clk 0:01:15]}  Qd3 {[%clk 0:01:05]} 24. Qe1 {[%clk 0:01:12]}  Rad8 {[%clk 0:01:04]} 25. b3 {[%clk 0:01:06]}  a6 {[%clk 0:01:03]} 26. h3 {[%clk 0:01:03]}  Rd5 {[%clk 0:00:58]} 27. Qb4 {[%clk 0:01:01]}  Bd4 {[%clk 0:00:37]} 28. Ne3 {[%clk 0:00:49]}  Rd7 {[%clk 0:00:20]} 29. Rd1 {[%clk 0:00:48]}  Bxe3 {[%clk 0:00:19]} 30. Rxd3 {[%clk 0:00:48]}  exd3 {[%clk 0:00:18]} 31. Bxe3 {[%clk 0:00:36]}  Rxe3 {[%clk 0:00:16]} 32. Qc4+ {[%clk 0:00:36]}  Kg7 {[%clk 0:00:13]} 33. Qc3+ {[%clk 0:00:33]}  Kg8 {[%clk 0:00:09]} 34. fxe3 {[%clk 0:00:32]}  d2 {[%clk 0:00:08]} 35. Qc8+ {[%clk 0:00:32]} 1-0


[Site "https://www.chess.com"]

[Event "Titled Tuesday Blitz February 28 Late 2023"]
[White "Melikyan, Gnel"]
[Black "Erzhanov, Arman"]
[WhiteFideId "54109990"]
[BlackFideId "4138821"]
[WhiteElo "2138"]
[BlackElo "2138"]
[Result "1/2-1/2"]
[Round "07"]
[TimeControl "180+2"]
[Date "2023.02.28"]
[WhiteClock "0:00:07"]
[BlackClock "0:00:41"]

1. b3 {[%clk 0:02:12]}  c5 {[%clk 0:02:51]} 2. Bb2 {[%clk 0:02:11]}  Nc6 {[%clk 0:02:52]} 3. Nf3 {[%clk 0:02:11]}  d6 {[%clk 0:02:48]} 4. g3 {[%clk 0:02:11]}  e5 {[%clk 0:02:48]} 5. Bg2 {[%clk 0:02:11]}  f5 {[%clk 0:02:49]} 6. O-O {[%clk 0:02:12]}  Nf6 {[%clk 0:02:47]} 7. d3 {[%clk 0:02:11]}  Be7 {[%clk 0:02:46]} 8. Nbd2 {[%clk 0:02:11]}  O-O {[%clk 0:02:46]} 9. e4 {[%clk 0:02:10]}  fxe4 {[%clk 0:02:41]} 10. Nxe4 {[%clk 0:02:10]}  Bg4 {[%clk 0:02:39]} 11. h3 {[%clk 0:02:08]}  Bh5 {[%clk 0:02:39]} 12. g4 {[%clk 0:02:04]}  Bg6 {[%clk 0:02:38]} 13. Nh4 {[%clk 0:02:01]}  Bxe4 {[%clk 0:02:31]} 14. dxe4 {[%clk 0:02:01]}  Nxg4 {[%clk 0:02:25]} 15. Nf5 {[%clk 0:01:52]}  Nf6 {[%clk 0:02:21]} 16. Kh1 {[%clk 0:01:50]}  g6 {[%clk 0:02:21]} 17. Ne3 {[%clk 0:01:48]}  Nh5 {[%clk 0:02:18]} 18. Ng4 {[%clk 0:01:31]}  Nf4 {[%clk 0:02:16]} 19. Nh6+ {[%clk 0:01:21]}  Kg7 {[%clk 0:02:14]} 20. Ng4 {[%clk 0:01:21]}  Nd4 {[%clk 0:02:07]} 21. c3 {[%clk 0:01:16]}  Nde6 {[%clk 0:02:06]} 22. Ne3 {[%clk 0:01:14]}  Qd7 {[%clk 0:02:02]} 23. Qg4 {[%clk 0:01:06]}  h5 {[%clk 0:01:56]} 24. Qd1 {[%clk 0:00:59]}  Nxg2 {[%clk 0:01:56]} 25. Nxg2 {[%clk 0:00:56]}  Nf4 {[%clk 0:01:55]} 26. Nxf4 {[%clk 0:00:54]}  Rxf4 {[%clk 0:01:55]} 27. Kg2 {[%clk 0:00:53]}  Raf8 {[%clk 0:01:54]} 28. f3 {[%clk 0:00:52]}  Qe6 {[%clk 0:01:40]} 29. c4 {[%clk 0:00:46]}  Qf6 {[%clk 0:01:40]} 30. Bc1 {[%clk 0:00:40]}  Rh4 {[%clk 0:01:32]} 31. Be3 {[%clk 0:00:34]}  Qe6 {[%clk 0:01:30]} 32. Rh1 {[%clk 0:00:33]}  g5 {[%clk 0:01:28]} 33. Qd2 {[%clk 0:00:24]}  Kg6 {[%clk 0:01:26]} 34. Rag1 {[%clk 0:00:23]}  Kh6 {[%clk 0:01:11]} 35. Kf2 {[%clk 0:00:20]}  Rg8 {[%clk 0:01:04]} 36. Rg3 {[%clk 0:00:20]}  Rf4 {[%clk 0:01:01]} 37. Bxf4 {[%clk 0:00:16]}  exf4 {[%clk 0:01:01]} 38. Rgg1 {[%clk 0:00:16]}  Bf6 {[%clk 0:01:02]} 39. Ke2 {[%clk 0:00:15]}  Bd4 {[%clk 0:01:03]} 40. Rg2 {[%clk 0:00:16]}  Qf6 {[%clk 0:00:57]} 41. Kd1 {[%clk 0:00:13]}  Qd8 {[%clk 0:00:57]} 42. Kc2 {[%clk 0:00:13]}  a5 {[%clk 0:00:55]} 43. h4 {[%clk 0:00:13]}  Qf6 {[%clk 0:00:52]} 44. hxg5+ {[%clk 0:00:13]}  Rxg5 {[%clk 0:00:53]} 45. Rxg5 {[%clk 0:00:13]}  Qxg5 {[%clk 0:00:54]} 46. Qh2 {[%clk 0:00:13]}  b6 {[%clk 0:00:52]} 47. a3 {[%clk 0:00:12]}  Be3 {[%clk 0:00:49]} 48. Rd1 {[%clk 0:00:10]}  Bd4 {[%clk 0:00:48]} 49. Qh3 {[%clk 0:00:10]}  Qg3 {[%clk 0:00:43]} 50. Qe6+ {[%clk 0:00:08]}  Kg5 {[%clk 0:00:44]} 51. Qf5+ {[%clk 0:00:08]}  Kh6 {[%clk 0:00:44]} 52. Qe6+ {[%clk 0:00:08]}  Kh7 {[%clk 0:00:44]} 53. Qf7+ {[%clk 0:00:08]}  Kh6 {[%clk 0:00:44]} 54. Qf8+ {[%clk 0:00:07]}  Kh7 {[%clk 0:00:42]} 55. Qf7+ {[%clk 0:00:07]}  Kh6 {[%clk 0:00:41]} 56. Qe6+ {[%clk 0:00:07]} 1/2-1/2


[Site "https://www.chess.com"]

[Event "Titled Tuesday Blitz February 28 Late 2023"]
[White "Yang, Qindong"]
[Black "Kleinman, Michael"]
[WhiteFideId "8603758"]
[BlackFideId "2609479"]
[WhiteElo "2090"]
[BlackElo "2287"]
[Result "0-1"]
[Round "07"]
[TimeControl "180+2"]
[Date "2023.02.28"]
[WhiteClock "0:00:16"]
[BlackClock "0:00:45"]

1. d4 {[%clk 0:02:57]}  Nf6 {[%clk 0:02:59]} 2. c4 {[%clk 0:02:54]}  g6 {[%clk 0:03:00]} 3. Nc3 {[%clk 0:02:52]}  d5 {[%clk 0:03:00]} 4. cxd5 {[%clk 0:02:52]}  Nxd5 {[%clk 0:03:01]} 5. Bd2 {[%clk 0:02:52]}  Bg7 {[%clk 0:03:00]} 6. e4 {[%clk 0:02:50]}  Nxc3 {[%clk 0:02:59]} 7. Bxc3 {[%clk 0:02:51]}  O-O {[%clk 0:02:57]} 8. Qd2 {[%clk 0:02:47]}  c5 {[%clk 0:02:46]} 9. d5 {[%clk 0:02:42]}  e6 {[%clk 0:02:45]} 10. d6 {[%clk 0:02:29]}  Nc6 {[%clk 0:02:42]} 11. Nf3 {[%clk 0:02:26]}  e5 {[%clk 0:02:39]} 12. b4 {[%clk 0:02:10]}  cxb4 {[%clk 0:02:30]} 13. Bxb4 {[%clk 0:02:10]}  Bg4 {[%clk 0:02:24]} 14. Be2 {[%clk 0:02:02]}  Bxf3 {[%clk 0:02:14]} 15. Bxf3 {[%clk 0:01:58]}  Nd4 {[%clk 0:02:12]} 16. Bd1 {[%clk 0:01:57]}  Qh4 {[%clk 0:02:06]} 17. Qd3 {[%clk 0:01:37]}  Rfd8 {[%clk 0:02:03]} 18. O-O {[%clk 0:01:12]}  Bf8 {[%clk 0:02:03]} 19. f4 {[%clk 0:01:06]}  Nc6 {[%clk 0:01:43]} 20. Bb3 {[%clk 0:00:52]}  Nxb4 {[%clk 0:01:39]} 21. Qc4 {[%clk 0:00:52]}  Bxd6 {[%clk 0:01:22]} 22. Qxf7+ {[%clk 0:00:51]}  Kh8 {[%clk 0:01:23]} 23. Rf3 {[%clk 0:00:43]}  Qe7 {[%clk 0:01:15]} 24. Qc4 {[%clk 0:00:32]}  Rac8 {[%clk 0:01:09]} 25. Qe6 {[%clk 0:00:29]}  Qxe6 {[%clk 0:01:07]} 26. Bxe6 {[%clk 0:00:30]}  Rc7 {[%clk 0:01:02]} 27. f5 {[%clk 0:00:21]}  Nc2 {[%clk 0:00:57]} 28. Raf1 {[%clk 0:00:17]}  Nd4 {[%clk 0:00:57]} 29. Rh3 {[%clk 0:00:17]}  Nxe6 {[%clk 0:00:54]} 30. fxe6 {[%clk 0:00:17]}  Re8 {[%clk 0:00:49]} 31. Rf6 {[%clk 0:00:17]}  Kg7 {[%clk 0:00:47]} 32. Rhf3 {[%clk 0:00:16]}  Rce7 {[%clk 0:00:45]} 0-1


[Site "https://www.chess.com"]

[Event "Titled Tuesday Blitz February 28 Late 2023"]
[White "Cheng, Xiao"]
[Black "Gerzhoy, Leonid"]
[WhiteFideId "2022915"]
[BlackFideId "2806126"]
[WhiteElo "2480"]
[BlackElo "2616"]
[Result "0-1"]
[Round "07"]
[TimeControl "180+2"]
[Date "2023.02.28"]
[WhiteClock "0:00:48"]
[BlackClock "0:00:13"]

1. e4 {[%clk 0:02:27]}  d6 {[%clk 0:02:52]} 2. d4 {[%clk 0:02:26]}  Nf6 {[%clk 0:02:52]} 3. Nc3 {[%clk 0:02:27]}  e5 {[%clk 0:02:51]} 4. Nf3 {[%clk 0:02:25]}  Nc6 {[%clk 0:02:51]} 5. d5 {[%clk 0:02:20]}  Ne7 {[%clk 0:02:50]} 6. h3 {[%clk 0:02:17]}  g6 {[%clk 0:02:49]} 7. g4 {[%clk 0:02:18]}  Bg7 {[%clk 0:02:49]} 8. Bg2 {[%clk 0:02:18]}  O-O {[%clk 0:02:48]} 9. O-O {[%clk 0:02:17]}  Ne8 {[%clk 0:02:47]} 10. Nd2 {[%clk 0:02:17]}  f5 {[%clk 0:02:46]} 11. Qe2 {[%clk 0:02:11]}  Nf6 {[%clk 0:02:36]} 12. exf5 {[%clk 0:02:07]}  gxf5 {[%clk 0:02:35]} 13. g5 {[%clk 0:02:08]}  Ne8 {[%clk 0:02:31]} 14. f4 {[%clk 0:02:08]}  Ng6 {[%clk 0:02:27]} 15. fxe5 {[%clk 0:02:06]}  dxe5 {[%clk 0:02:27]} 16. Nc4 {[%clk 0:02:02]}  Nd6 {[%clk 0:02:26]} 17. Nd1 {[%clk 0:02:00]}  f4 {[%clk 0:02:19]} 18. Nxd6 {[%clk 0:01:53]}  cxd6 {[%clk 0:02:18]} 19. Qh5 {[%clk 0:01:52]}  Bf5 {[%clk 0:02:06]} 20. c3 {[%clk 0:01:52]}  Bd3 {[%clk 0:02:00]} 21. Re1 {[%clk 0:01:50]}  Qb6+ {[%clk 0:01:30]} 22. Nf2 {[%clk 0:01:44]}  Bf5 {[%clk 0:01:17]} 23. Kf1 {[%clk 0:01:32]}  f3 {[%clk 0:00:52]} 24. Bxf3 {[%clk 0:01:31]}  e4 {[%clk 0:00:51]} 25. Be3 {[%clk 0:01:25]}  Qxb2 {[%clk 0:00:44]} 26. Rab1 {[%clk 0:01:21]}  Qxc3 {[%clk 0:00:42]} 27. Be2 {[%clk 0:01:10]}  Qxe3 {[%clk 0:00:38]} 28. Rb3 {[%clk 0:01:10]}  Qf4 {[%clk 0:00:35]} 29. Kg1 {[%clk 0:01:07]}  e3 {[%clk 0:00:27]} 30. Qf3 {[%clk 0:00:48]}  exf2+ {[%clk 0:00:25]} 31. Kxf2 {[%clk 0:00:48]}  Bd4+ {[%clk 0:00:21]} 32. Kg2 {[%clk 0:00:47]}  Nh4+ {[%clk 0:00:20]} 33. Kh1 {[%clk 0:00:47]}  Nxf3 {[%clk 0:00:19]} 34. Rxf3 {[%clk 0:00:48]}  Be4 {[%clk 0:00:18]} 35. Rf1 {[%clk 0:00:48]}  Bxf3+ {[%clk 0:00:17]} 36. Rxf3 {[%clk 0:00:49]}  Qc1+ {[%clk 0:00:16]} 37. Bf1 {[%clk 0:00:48]}  Rxf3 {[%clk 0:00:14]} 38. Kg2 {[%clk 0:00:48]}  Qxf1+ {[%clk 0:00:13]} 39. Kh2 {[%clk 0:00:48]}  Rxh3# {[%clk 0:00:13]} 0-1


[Site "https://www.chess.com"]

[Event "Titled Tuesday Blitz February 28 Late 2023"]
[White "benny_aizenberg"]
[Black "Vovk, Orest"]
[BlackFideId "14113490"]
[WhiteElo "2583"]
[BlackElo "2215"]
[Result "1-0"]
[Round "07"]
[TimeControl "180+2"]
[Date "2023.02.28"]
[WhiteClock "0:00:05"]
[BlackClock "0:00:09"]

1. e4 {[%clk 0:03:00]}  g5 {[%clk 0:02:53]} 2. d4 {[%clk 0:02:55]}  g4 {[%clk 0:02:52]} 3. Nc3 {[%clk 0:02:48]}  Bg7 {[%clk 0:02:52]} 4. e5 {[%clk 0:02:45]}  d6 {[%clk 0:02:52]} 5. Bf4 {[%clk 0:02:44]}  Nc6 {[%clk 0:02:49]} 6. Bb5 {[%clk 0:02:38]}  Bd7 {[%clk 0:02:47]} 7. e6 {[%clk 0:02:12]}  fxe6 {[%clk 0:02:36]} 8. Qxg4 {[%clk 0:02:12]}  Bxd4 {[%clk 0:02:36]} 9. Qh5+ {[%clk 0:02:11]}  Kf8 {[%clk 0:02:35]} 10. Nf3 {[%clk 0:02:11]}  Be8 {[%clk 0:02:19]} 11. Qg4 {[%clk 0:02:05]}  h5 {[%clk 0:01:39]} 12. Qxe6 {[%clk 0:01:58]}  Bf7 {[%clk 0:01:35]} 13. Qe2 {[%clk 0:01:56]}  e5 {[%clk 0:01:29]} 14. Bxc6 {[%clk 0:01:54]}  bxc6 {[%clk 0:01:26]} 15. Nxd4 {[%clk 0:01:54]}  exd4 {[%clk 0:01:26]} 16. Ne4 {[%clk 0:01:54]}  Qe7 {[%clk 0:01:17]} 17. O-O {[%clk 0:01:47]}  Nf6 {[%clk 0:01:07]} 18. Ng3 {[%clk 0:01:21]}  Qxe2 {[%clk 0:01:04]} 19. Nxe2 {[%clk 0:01:21]}  c5 {[%clk 0:01:05]} 20. b4 {[%clk 0:01:10]}  Bc4 {[%clk 0:01:04]} 21. Rfe1 {[%clk 0:01:08]}  Bxe2 {[%clk 0:01:03]} 22. Rxe2 {[%clk 0:01:08]}  cxb4 {[%clk 0:01:03]} 23. Rae1 {[%clk 0:01:07]}  Re8 {[%clk 0:00:58]} 24. Rxe8+ {[%clk 0:00:54]}  Nxe8 {[%clk 0:00:58]} 25. Bg5 {[%clk 0:00:53]}  Rh7 {[%clk 0:00:51]} 26. h4 {[%clk 0:00:52]}  c5 {[%clk 0:00:50]} 27. f3 {[%clk 0:00:45]}  Rd7 {[%clk 0:00:46]} 28. g4 {[%clk 0:00:45]}  hxg4 {[%clk 0:00:43]} 29. fxg4 {[%clk 0:00:45]}  Ng7 {[%clk 0:00:37]} 30. h5 {[%clk 0:00:44]}  Kf7 {[%clk 0:00:37]} 31. Rf1+ {[%clk 0:00:38]}  Kg8 {[%clk 0:00:37]} 32. h6 {[%clk 0:00:38]}  Ne6 {[%clk 0:00:37]} 33. Bd2 {[%clk 0:00:39]}  Rf7 {[%clk 0:00:34]} 34. Re1 {[%clk 0:00:32]}  Nf8 {[%clk 0:00:33]} 35. Kg2 {[%clk 0:00:26]}  Ng6 {[%clk 0:00:31]} 36. Kg3 {[%clk 0:00:15]}  Ne5 {[%clk 0:00:29]} 37. Bf4 {[%clk 0:00:15]}  Ng6 {[%clk 0:00:21]} 38. Bxd6 {[%clk 0:00:14]}  Kh7 {[%clk 0:00:20]} 39. g5 {[%clk 0:00:08]}  a5 {[%clk 0:00:16]} 40. Bxc5 {[%clk 0:00:05]}  Nf4 {[%clk 0:00:16]} 41. Kg4 {[%clk 0:00:04]}  d3 {[%clk 0:00:13]} 42. Be3 {[%clk 0:00:01]}  Ng2 {[%clk 0:00:11]} 43. Kh5 {[%clk 0:00:02]}  Rf5 {[%clk 0:00:07]} 44. Rg1 {[%clk 0:00:01]}  Nxe3 {[%clk 0:00:06]} 45. cxd3 {[%clk 0:00:02]}  Nd5 {[%clk 0:00:06]} 46. Re1 {[%clk 0:00:01]}  Nf4+ {[%clk 0:00:02]} 47. Kg4 {[%clk 0:00:02]}  Kg6 {[%clk 0:00:03]} 48. Re7 {[%clk 0:00:01]}  Rxg5+ {[%clk 0:00:03]} 49. Kxf4 {[%clk 0:00:01]}  Rf5+ {[%clk 0:00:04]} 50. Ke4 {[%clk 0:00:01]}  Rh5 {[%clk 0:00:04]} 51. h7 {[%clk 0:00:02]}  Rxh7 {[%clk 0:00:04]} 52. Rxh7 {[%clk 0:00:02]}  Kxh7 {[%clk 0:00:04]} 53. Kd4 {[%clk 0:00:02]}  a4 {[%clk 0:00:05]} 54. Kc4 {[%clk 0:00:03]}  b3 {[%clk 0:00:06]} 55. axb3 {[%clk 0:00:03]}  axb3 {[%clk 0:00:06]} 56. Kxb3 {[%clk 0:00:03]}  Kg7 {[%clk 0:00:07]} 57. Kc4 {[%clk 0:00:04]}  Kf7 {[%clk 0:00:08]} 58. Kd5 {[%clk 0:00:04]}  Ke7 {[%clk 0:00:09]} 59. Kc6 {[%clk 0:00:05]}  Ke6 {[%clk 0:00:08]} 60. d4 {[%clk 0:00:05]}  Ke7 {[%clk 0:00:08]} 61. d5 {[%clk 0:00:04]}  Kd8 {[%clk 0:00:08]} 62. Kd6 {[%clk 0:00:05]}  Kc8 {[%clk 0:00:09]} 63. Ke7 {[%clk 0:00:05]} 1-0


[Site "https://www.chess.com"]

[Event "Titled Tuesday Blitz February 28 Late 2023"]
[White "Di Berardino, Diego Rafael"]
[Black "Mujumdar, Sameer"]
[WhiteFideId "2105446"]
[BlackFideId "2029707"]
[WhiteElo "2432"]
[BlackElo "2104"]
[Result "1-0"]
[Round "07"]
[TimeControl "180+2"]
[Date "2023.02.28"]
[WhiteClock "0:00:12"]
[BlackClock "0:01:10"]

1. d4 {[%clk 0:03:00]}  Nf6 {[%clk 0:02:58]} 2. Nf3 {[%clk 0:02:55]}  e6 {[%clk 0:02:58]} 3. Bg5 {[%clk 0:02:53]}  d5 {[%clk 0:02:56]} 4. e3 {[%clk 0:02:52]}  Be7 {[%clk 0:02:53]} 5. Bd3 {[%clk 0:02:52]}  Nbd7 {[%clk 0:02:52]} 6. Nbd2 {[%clk 0:02:51]}  O-O {[%clk 0:02:51]} 7. Ne5 {[%clk 0:02:41]}  Nxe5 {[%clk 0:02:49]} 8. dxe5 {[%clk 0:02:41]}  Nd7 {[%clk 0:02:50]} 9. Bf4 {[%clk 0:02:41]}  Nc5 {[%clk 0:02:44]} 10. Be2 {[%clk 0:02:27]}  f6 {[%clk 0:02:41]} 11. O-O {[%clk 0:02:21]}  fxe5 {[%clk 0:02:34]} 12. Bxe5 {[%clk 0:02:20]}  Bf6 {[%clk 0:02:34]} 13. Nf3 {[%clk 0:02:08]}  c6 {[%clk 0:02:32]} 14. Qd4 {[%clk 0:02:02]}  Nd7 {[%clk 0:02:31]} 15. Bxf6 {[%clk 0:02:00]}  Qxf6 {[%clk 0:02:32]} 16. Qxf6 {[%clk 0:01:44]}  gxf6 {[%clk 0:02:20]} 17. c4 {[%clk 0:01:41]}  Ne5 {[%clk 0:02:19]} 18. cxd5 {[%clk 0:01:28]}  exd5 {[%clk 0:02:16]} 19. Nd4 {[%clk 0:01:23]}  Bd7 {[%clk 0:02:11]} 20. f4 {[%clk 0:01:11]}  Ng4 {[%clk 0:02:07]} 21. Bxg4 {[%clk 0:01:04]}  Bxg4 {[%clk 0:02:08]} 22. f5 {[%clk 0:01:00]}  Rfe8 {[%clk 0:02:05]} 23. Rf4 {[%clk 0:00:55]}  Bh5 {[%clk 0:02:03]} 24. Ne6 {[%clk 0:00:51]}  Re7 {[%clk 0:01:59]} 25. e4 {[%clk 0:00:49]}  dxe4 {[%clk 0:01:54]} 26. Rxe4 {[%clk 0:00:49]}  Bf7 {[%clk 0:01:54]} 27. Rae1 {[%clk 0:00:41]}  Bxe6 {[%clk 0:01:49]} 28. Rxe6 {[%clk 0:00:40]}  Rxe6 {[%clk 0:01:47]} 29. Rxe6 {[%clk 0:00:41]}  Kf7 {[%clk 0:01:46]} 30. Rd6 {[%clk 0:00:40]}  Re8 {[%clk 0:01:45]} 31. Kf2 {[%clk 0:00:39]}  h5 {[%clk 0:01:44]} 32. g3 {[%clk 0:00:39]}  Re5 {[%clk 0:01:42]} 33. Rd7+ {[%clk 0:00:39]}  Re7 {[%clk 0:01:42]} 34. Rd8 {[%clk 0:00:34]}  Re5 {[%clk 0:01:41]} 35. Rd7+ {[%clk 0:00:32]}  Re7 {[%clk 0:01:40]} 36. Rxe7+ {[%clk 0:00:24]}  Kxe7 {[%clk 0:01:40]} 37. Ke3 {[%clk 0:00:24]}  Kd6 {[%clk 0:01:40]} 38. Kf4 {[%clk 0:00:22]}  c5 {[%clk 0:01:39]} 39. h4 {[%clk 0:00:21]}  b5 {[%clk 0:01:38]} 40. g4 {[%clk 0:00:20]}  hxg4 {[%clk 0:01:38]} 41. Kxg4 {[%clk 0:00:21]}  c4 {[%clk 0:01:35]} 42. Kf4 {[%clk 0:00:21]}  a5 {[%clk 0:01:27]} 43. Ke4 {[%clk 0:00:21]}  a4 {[%clk 0:01:19]} 44. Kd4 {[%clk 0:00:21]}  Ke7 {[%clk 0:01:15]} 45. a3 {[%clk 0:00:19]}  Kd6 {[%clk 0:01:10]} 46. h5 {[%clk 0:00:12]} 1-0


[Site "https://www.chess.com"]

[Event "Titled Tuesday Blitz February 28 Late 2023"]
[White "Mortazavi, Ali"]
[Black "Yurovskykh, Oleksandr"]
[WhiteFideId "401323"]
[BlackFideId "14134020"]
[WhiteElo "2339"]
[BlackElo "2268"]
[Result "1-0"]
[Round "07"]
[TimeControl "180+2"]
[Date "2023.02.28"]
[WhiteClock "0:00:08"]
[BlackClock "0:00:05"]

1. e4 {[%clk 0:02:33]}  d5 {[%clk 0:02:57]} 2. Nc3 {[%clk 0:02:33]}  d4 {[%clk 0:02:56]} 3. Nce2 {[%clk 0:02:33]}  e5 {[%clk 0:02:56]} 4. Ng3 {[%clk 0:02:33]}  Be6 {[%clk 0:02:55]} 5. Bb5+ {[%clk 0:02:31]}  c6 {[%clk 0:02:53]} 6. Ba4 {[%clk 0:02:32]}  Qa5 {[%clk 0:02:32]} 7. c3 {[%clk 0:02:21]}  d3 {[%clk 0:02:22]} 8. Nf3 {[%clk 0:02:07]}  f6 {[%clk 0:02:02]} 9. Bb3 {[%clk 0:01:59]}  Bd7 {[%clk 0:01:56]} 10. Bxg8 {[%clk 0:01:53]}  Rxg8 {[%clk 0:01:52]} 11. Qb3 {[%clk 0:01:54]}  Rh8 {[%clk 0:01:41]} 12. Qxb7 {[%clk 0:01:53]}  Qb6 {[%clk 0:01:31]} 13. Qxa8 {[%clk 0:01:51]}  Bd6 {[%clk 0:01:28]} 14. a4 {[%clk 0:01:40]}  Bc7 {[%clk 0:01:16]} 15. a5 {[%clk 0:01:34]}  Qa6 {[%clk 0:01:16]} 16. Ra3 {[%clk 0:01:18]}  c5 {[%clk 0:00:18]} 17. Rb3 {[%clk 0:01:11]}  Ke7 {[%clk 0:00:19]} 18. Qb7 {[%clk 0:01:08]}  Qxa5 {[%clk 0:00:15]} 19. Ra3 {[%clk 0:00:58]}  Qb6 {[%clk 0:00:13]} 20. Rxa7 {[%clk 0:00:57]}  Qxb7 {[%clk 0:00:12]} 21. Rxb7 {[%clk 0:00:58]}  Kd6 {[%clk 0:00:12]} 22. b4 {[%clk 0:00:51]}  Kc6 {[%clk 0:00:12]} 23. Ra7 {[%clk 0:00:46]}  cxb4 {[%clk 0:00:12]} 24. cxb4 {[%clk 0:00:45]}  Bb6 {[%clk 0:00:12]} 25. Ra3 {[%clk 0:00:41]}  Kb7 {[%clk 0:00:11]} 26. O-O {[%clk 0:00:36]}  Bb5 {[%clk 0:00:12]} 27. Nf5 {[%clk 0:00:35]}  Rd8 {[%clk 0:00:10]} 28. Nxg7 {[%clk 0:00:32]}  Nc6 {[%clk 0:00:10]} 29. Ne6 {[%clk 0:00:32]}  Rd6 {[%clk 0:00:10]} 30. Nc5+ {[%clk 0:00:32]}  Kc7 {[%clk 0:00:10]} 31. Bb2 {[%clk 0:00:13]}  Nxb4 {[%clk 0:00:10]} 32. Rc3 {[%clk 0:00:13]}  Nc6 {[%clk 0:00:09]} 33. Rfc1 {[%clk 0:00:11]}  Kb8 {[%clk 0:00:08]} 34. Nh4 {[%clk 0:00:11]}  Nb4 {[%clk 0:00:05]} 35. Rb3 {[%clk 0:00:08]} 1-0


[Site "https://www.chess.com"]

[Event "Titled Tuesday Blitz February 28 Late 2023"]
[White "Defend, Balint"]
[Black "Plotkin, Victor"]
[WhiteFideId "17004853"]
[BlackFideId "2606674"]
[WhiteElo "2554"]
[BlackElo "2214"]
[Result "0-1"]
[Round "07"]
[TimeControl "180+2"]
[Date "2023.02.28"]
[WhiteClock "0:00:10"]
[BlackClock "0:00:08"]

1. e4 {[%clk 0:03:00]}  e5 {[%clk 0:03:00]} 2. Nf3 {[%clk 0:03:00]}  Nf6 {[%clk 0:03:00]} 3. Nxe5 {[%clk 0:02:59]}  Nxe4 {[%clk 0:03:01]} 4. Qe2 {[%clk 0:02:55]}  Qe7 {[%clk 0:03:01]} 5. Qxe4 {[%clk 0:02:51]}  d6 {[%clk 0:03:01]} 6. f4 {[%clk 0:02:46]}  dxe5 {[%clk 0:02:58]} 7. Qxe5 {[%clk 0:02:47]}  Qxe5+ {[%clk 0:02:57]} 8. fxe5 {[%clk 0:02:48]}  Bf5 {[%clk 0:02:57]} 9. d3 {[%clk 0:02:46]}  Nc6 {[%clk 0:02:52]} 10. Bf4 {[%clk 0:02:46]}  O-O-O {[%clk 0:02:51]} 11. Nc3 {[%clk 0:02:37]}  Re8 {[%clk 0:02:40]} 12. Kd2 {[%clk 0:02:37]}  Bc5 {[%clk 0:02:17]} 13. Re1 {[%clk 0:02:35]}  Bd4 {[%clk 0:02:14]} 14. h3 {[%clk 0:02:23]}  Bxe5 {[%clk 0:02:05]} 15. Bxe5 {[%clk 0:02:23]}  Nxe5 {[%clk 0:02:03]} 16. Re3 {[%clk 0:02:21]}  f6 {[%clk 0:01:54]} 17. g4 {[%clk 0:02:20]}  Bd7 {[%clk 0:01:53]} 18. Bg2 {[%clk 0:02:20]}  Bc6 {[%clk 0:01:51]} 19. Bxc6 {[%clk 0:02:17]}  Nxc6 {[%clk 0:01:50]} 20. Rhe1 {[%clk 0:02:17]}  Rxe3 {[%clk 0:01:50]} 21. Rxe3 {[%clk 0:02:18]}  Kd7 {[%clk 0:01:49]} 22. Ne4 {[%clk 0:02:17]}  b6 {[%clk 0:01:44]} 23. c3 {[%clk 0:02:17]}  Re8 {[%clk 0:01:44]} 24. d4 {[%clk 0:02:17]}  Ne7 {[%clk 0:01:35]} 25. c4 {[%clk 0:02:16]}  Ng6 {[%clk 0:01:25]} 26. d5 {[%clk 0:02:11]}  Nf4 {[%clk 0:01:20]} 27. b3 {[%clk 0:01:29]}  Ng2 {[%clk 0:00:56]} 28. Rg3 {[%clk 0:01:27]}  Rxe4 {[%clk 0:00:53]} 29. Rxg2 {[%clk 0:01:28]}  Kd6 {[%clk 0:00:51]} 30. Rg3 {[%clk 0:01:26]}  Ke5 {[%clk 0:00:50]} 31. Kd3 {[%clk 0:01:12]}  Kf4 {[%clk 0:00:43]} 32. g5 {[%clk 0:00:59]}  Kxg3 {[%clk 0:00:39]} 33. Kxe4 {[%clk 0:00:59]}  fxg5 {[%clk 0:00:37]} 34. b4 {[%clk 0:00:59]}  Kxh3 {[%clk 0:00:22]} 35. c5 {[%clk 0:00:58]}  bxc5 {[%clk 0:00:21]} 36. bxc5 {[%clk 0:00:59]}  g4 {[%clk 0:00:20]} 37. d6 {[%clk 0:00:57]}  cxd6 {[%clk 0:00:19]} 38. c6 {[%clk 0:00:57]}  g3 {[%clk 0:00:19]} 39. c7 {[%clk 0:00:57]}  g2 {[%clk 0:00:20]} 40. c8=Q+ {[%clk 0:00:56]}  Kh2 {[%clk 0:00:20]} 41. Qc2 {[%clk 0:00:53]}  Kh1 {[%clk 0:00:20]} 42. Kf3 {[%clk 0:00:47]}  g1=Q {[%clk 0:00:19]} 43. Qxh7+ {[%clk 0:00:45]}  Qh2 {[%clk 0:00:19]} 44. Qb1+ {[%clk 0:00:32]}  Qg1 {[%clk 0:00:19]} 45. Qh7+ {[%clk 0:00:29]}  Qh2 {[%clk 0:00:20]} 46. Qxg7 {[%clk 0:00:26]}  Qxa2 {[%clk 0:00:13]} 47. Qh6+ {[%clk 0:00:19]}  Kg1 {[%clk 0:00:10]} 48. Qg7+ {[%clk 0:00:10]}  Kh1 {[%clk 0:00:08]} 49. Qg3 {[%clk 0:00:09]}  Qb3+ {[%clk 0:00:07]} 50. Kg4 {[%clk 0:00:09]}  Qxg3+ {[%clk 0:00:07]} 51. Kxg3 {[%clk 0:00:09]}  a5 {[%clk 0:00:07]} 52. Kf3 {[%clk 0:00:10]}  a4 {[%clk 0:00:08]} 0-1


[Site "https://www.chess.com"]